bitfinex/quotes_BTCUSD_20230403
["timestamp","ask_amount","ask_price","bid_price","bid_amount"]
[1680553778014,0.71279904,27761.0,27760.0,0.4836917]
[1680553778246,0.71279904,27761.0,27760.0,0.5092027]
[1680553778485,0.71279904,27761.0,27760.0,0.13413777]
[1680553778723,0.71279904,27761.0,27760.0,0.445247]
[1680553778945,0.71279904,27761.0,27760.0,0.427236]
[1680553779408,0.71279904,27761.0,27760.0,0.445247]
[1680553779881,0.71279904,27761.0,27760.0,0.047736]
[1680553780103,2.00935791,27761.0,27760.0,0.022]
[1680553780548,2.00953791,27761.0,27760.0,0.022]
[1680553781292,2.00953791,27761.0,27757.0,0.397513]
[1680553781527,1.29673887,27760.0,27759.0,0.3795]
[1680553781728,1.29691887,27760.0,27759.0,0.3795]
[1680553782214,1.29691887,27760.0,27759.0,0.397936]
[1680553782446,1.29691887,27760.0,27759.0,0.3795]
[1680553782898,1.2399579,27760.0,27759.0,0.37968]
[1680553783137,1.2399579,27760.0,27759.0,0.44666413]
[1680553783379,1.2399579,27760.0,27759.0,0.018634]
[1680553783622,1.2419579,27760.0,27758.0,0.018012]
[1680553783869,0.71279904,27761.0,27759.0,0.017961]
[1680553784102,0.71261904,27761.0,27759.0,0.019961]
[1680553784333,0.71261904,27761.0,27760.0,0.3795]
[1680553784559,0.51261904,27761.0,27760.0,0.415335]
[1680553784822,0.51261904,27761.0,27760.0,0.419015]
[1680553785949,0.51261904,27761.0,27760.0,0.415515]
[1680553786203,0.51261904,27761.0,27760.0,0.46856521]
[1680553786661,0.51461904,27761.0,27760.0,0.46856521]
[1680553787124,0.51461904,27761.0,27760.0,0.397504]
[1680553787409,0.51261904,27761.0,27760.0,0.397504]
[1680553787632,0.51261904,27761.0,27760.0,0.412504]
[1680553787859,0.51261904,27761.0,27760.0,0.397504]
[1680553788096,0.51261904,27761.0,27760.0,0.412504]
[1680553788329,0.51261904,27761.0,27760.0,0.397504]
[1680553788559,0.51261904,27761.0,27760.0,0.4387544]
[1680553788797,0.51261904,27761.0,27760.0,0.397504]
[1680553789278,0.51261904,27761.0,27760.0,0.020004]
[1680553789507,0.51261904,27761.0,27760.0,0.017824]
[1680553789737,0.47256825,27761.0,27760.0,0.017824]
[1680553789992,0.47056825,27761.0,27760.0,0.017824]
[1680553790228,0.67756506,27761.0,27760.0,0.002]
[1680553790469,0.67756506,27761.0,27756.0,0.37968]
[1680553790470,0.53566825,27761.0,27756.0,0.37968]
[1680553790697,0.2,27757.0,27756.0,0.37968]
[1680553790951,0.53566825,27761.0,27760.0,0.19173768]
[1680553791185,0.57451825,27761.0,27760.0,0.19373768]
[1680553791417,0.57500425,27761.0,27760.0,0.19373768]
[1680553791662,0.53584825,27761.0,27760.0,0.19373768]
[1680553792323,0.57403025,27761.0,27760.0,0.19373768]
[1680553792583,0.53584825,27761.0,27760.0,0.19173768]
[1680553793047,0.57588525,27761.0,27760.0,0.19173768]
[1680553793263,0.53784825,27761.0,27760.0,0.19273768]
[1680553793498,0.53584825,27761.0,27760.0,0.19173768]
[1680553793697,0.53784825,27761.0,27760.0,0.19273768]
[1680553794003,0.53784825,27761.0,27760.0,0.19173768]
[1680553794004,0.53584825,27761.0,27760.0,0.19173768]
[1680553794232,0.53784825,27761.0,27760.0,0.19273768]
[1680553794455,0.53584825,27761.0,27760.0,0.19173768]
[1680553794912,0.47074825,27761.0,27760.0,0.19173768]
[1680553795611,0.47074825,27761.0,27760.0,0.19273768]
[1680553795842,0.47274825,27761.0,27760.0,0.19273768]
[1680553796066,0.47074825,27761.0,27760.0,0.19173768]
[1680553796301,0.47274825,27761.0,27760.0,0.19273768]
[1680553796775,0.59810119,27761.0,27760.0,0.19273768]
[1680553797005,0.63994519,27761.0,27760.0,0.19273768]
[1680553797454,0.63794519,27761.0,27760.0,0.19173768]
[1680553797689,0.63994519,27761.0,27760.0,0.19273768]
[1680553797920,0.59810119,27761.0,27760.0,0.19273768]
[1680553798140,0.68160622,27761.0,27760.0,0.19273768]
[1680553798364,0.59810119,27761.0,27760.0,0.19273768]
[1680553798596,0.68160667,27761.0,27760.0,0.19273768]
[1680553798824,0.55625373,27761.0,27760.0,0.19273768]
[1680553799048,0.7652373,27761.0,27760.0,0.19273768]
[1680553799500,0.63988436,27761.0,27760.0,0.19273768]
[1680553800245,0.70448436,27761.0,27760.0,0.19273768]
[1680553800484,0.82982931,27761.0,27760.0,0.19273768]
[1680553800732,0.70448436,27761.0,27760.0,0.19273768]
[1680553800962,0.70333844,27761.0,27760.0,0.19273768]
[1680553801667,0.65757244,27761.0,27760.0,0.19273768]
[1680553801898,0.69842144,27761.0,27760.0,0.19273768]
[1680553802128,0.69842144,27761.0,27760.0,0.19373768]
[1680553802377,0.74015336,27761.0,27760.0,0.19373768]
[1680553802618,1.16568431,27761.0,27760.0,0.19373768]
[1680553802857,2.50174098,27761.0,27760.0,0.19373768]
[1680553803090,2.29541335,27761.0,27760.0,0.19373768]
[1680553803817,2.67180122,27761.0,27760.0,0.55393768]
[1680553804076,2.67198122,27761.0,27760.0,0.55393768]
[1680553804558,1.9955367,27761.0,27760.0,0.55393768]
[1680553804757,2.03736147,27761.0,27760.0,0.55393768]
[1680553805028,2.50470064,27761.0,27760.0,0.55393768]
[1680553805518,2.70470122,27761.0,27760.0,0.55393768]
[1680553805749,0.2,27758.0,27747.0,0.4896]
[1680553805994,0.0646,27752.0,27748.0,0.00018]
[1680553806229,0.18409281,27751.0,27748.0,0.00018]
[1680553806464,0.0651,27749.0,27748.0,0.00018]
[1680553806709,0.24694781,27749.0,27748.0,0.001]
[1680553807177,0.105051,27749.0,27748.0,0.001]
[1680553807412,0.104051,27749.0,27748.0,0.001]
[1680553807642,0.2,27748.0,27743.0,0.0207]
[1680553807893,0.0651,27744.0,27743.0,0.0207]
[1680553808132,0.24829281,27744.0,27743.0,0.0207]
[1680553808372,0.106396,27744.0,27743.0,0.0207]
[1680553808927,0.133396,27744.0,27743.0,0.0217]
[1680553809168,0.106396,27744.0,27743.0,0.0207]
[1680553809405,0.133396,27744.0,27743.0,0.0217]
[1680553809636,0.106396,27744.0,27743.0,0.0207]
[1680553809870,0.0651,27744.0,27743.0,0.0207]
[1680553810603,0.131328,27744.0,27743.0,0.0217]
[1680553810834,0.131328,27744.0,27743.0,0.0207]
[1680553810835,0.0651,27744.0,27743.0,0.0207]
[1680553811070,0.0921,27744.0,27743.0,0.0217]
[1680553811310,0.132725,27744.0,27743.0,0.0217]
[1680553811539,0.40018,27747.0,27743.0,0.54814881]
[1680553811540,0.00018,27747.0,27743.0,0.54814881]
[1680553811776,0.3,27748.0,27743.0,0.54714881]
[1680553812017,0.027,27744.0,27743.0,0.0217]
[1680553812250,0.027,27744.0,27743.0,0.0207]
[1680553812489,0.0646,27746.0,27743.0,0.0277]
[1680553812725,0.0646,27744.0,27743.0,0.0277]
[1680553812961,0.106897,27744.0,27743.0,0.0277]
[1680553813451,0.306897,27744.0,27743.0,0.0207]
[1680553813701,0.306897,27744.0,27743.0,0.0217]
[1680553813702,1.727897,27744.0,27743.0,0.0217]
[1680553813947,0.607077,27744.0,27743.0,0.0207]
[1680553814150,0.780117,27744.0,27743.0,0.0207]
[1680553814426,0.607077,27744.0,27743.0,0.0207]
[1680553814900,0.634077,27744.0,27743.0,0.0217]
[1680553815137,0.807117,27744.0,27743.0,0.0217]
[1680553815362,0.780117,27744.0,27743.0,0.0207]
[1680553817768,0.069297,27744.0,27743.0,0.0217]
[1680553817995,0.042297,27744.0,27743.0,0.0207]
[1680553818237,0.069297,27744.0,27743.0,0.0217]
[1680553818714,0.0827047,27744.0,27743.0,0.0217]
[1680553818951,0.069297,27744.0,27743.0,0.0217]
[1680553819188,0.042297,27744.0,27743.0,0.0207]
[1680553819461,0.069297,27744.0,27743.0,0.0217]
[1680553820165,0.134397,27744.0,27743.0,0.0217]
[1680553820395,0.134517,27744.0,27743.0,0.0217]
[1680553820618,0.134577,27744.0,27743.0,0.0217]
[1680553821096,0.107577,27744.0,27743.0,0.0207]
[1680553821593,0.107577,27744.0,27743.0,0.16259681]
[1680553821846,0.00018,27744.0,27743.0,0.0207]
[1680553822092,0.027,27744.0,27743.0,0.0217]
[1680553822346,0.0651,27745.0,27743.0,0.0207]
[1680553822588,0.0651,27745.0,27743.0,0.0217]
[1680553822589,0.027,27744.0,27743.0,0.0217]
[1680553822834,0.0651,27745.0,27743.0,0.0207]
[1680553823080,0.027,27744.0,27743.0,0.0217]
[1680553823313,0.0651,27745.0,27743.0,0.0207]
[1680553823581,0.312783,27744.0,27743.0,0.0217]
[1680553823829,0.303573,27744.0,27743.0,0.0217]
[1680553824067,0.276573,27744.0,27743.0,0.0207]
[1680553824748,0.576753,27744.0,27743.0,0.00630165]
[1680553825037,0.00376144,27742.0,27737.0,0.02088]
[1680553825267,0.0646,27738.0,27737.0,0.0207]
[1680553825498,0.0646,27738.0,27737.0,0.02088]
[1680553826393,0.0796,27738.0,27737.0,0.02188]
[1680553828492,0.25227,27738.0,27737.0,0.02188]
[1680553828721,0.25227,27738.0,27737.0,0.0217]
[1680553828722,0.293491,27738.0,27737.0,0.0217]
[1680553828946,0.593491,27738.0,27737.0,0.0207]
[1680553829188,0.578491,27738.0,27737.0,0.0207]
[1680553829418,0.578491,27738.0,27732.0,0.0207]
[1680553829419,0.4,27734.0,27732.0,0.0207]
[1680553829648,0.81945081,27733.0,27732.0,0.01174925]
[1680553829917,1.550654,27733.0,27732.0,0.01174925]
[1680553830388,1.386664,27733.0,27732.0,0.01174925]
[1680553831125,1.413664,27733.0,27732.0,0.01174925]
[1680553831365,1.386664,27733.0,27732.0,0.01174925]
[1680553831595,1.405164,27733.0,27732.0,0.01174925]
[1680553832054,1.378164,27733.0,27732.0,0.01174925]
[1680553832282,1.5,27730.0,27726.0,0.0207]
[1680553832510,0.23777,27727.0,27726.0,0.0207]
[1680553832745,0.579167,27727.0,27726.0,0.0207]
[1680553833216,0.341397,27727.0,27726.0,0.0207]
[1680553834219,0.368397,27727.0,27726.0,0.0207]
[1680553834474,0.4436237,27727.0,27726.0,0.0207]
[1680553834711,0.4166237,27727.0,27726.0,0.0207]
[1680553834929,0.4436237,27727.0,27726.0,0.0207]
[1680553835155,0.4166237,27727.0,27726.0,0.0207]
[1680553835387,0.5897237,27727.0,27726.0,0.0207]
[1680553836125,0.6167237,27727.0,27726.0,0.0207]
[1680553836600,0.368397,27727.0,27726.0,0.0207]
[1680553836819,0.368397,27727.0,27726.0,0.02060257]
[1680553836820,0.341397,27727.0,27726.0,0.02060257]
[1680553837048,0.368397,27727.0,27726.0,0.02060257]
[1680553837277,0.06397791,27727.0,27726.0,0.02060257]
[1680553837755,0.06397791,27727.0,27726.0,0.02050514]
[1680553838700,0.06397791,27727.0,27726.0,0.02040771]
[1680553838980,0.03697791,27727.0,27726.0,0.02040771]
[1680553839217,1.73713791,27727.0,27726.0,0.02040771]
[1680553839448,2.01013791,27727.0,27726.0,0.02040771]
[1680553839682,2.03713791,27727.0,27726.0,0.02040771]
[1680553839926,2.03713791,27727.0,27726.0,0.02031028]
[1680553839927,2.01013791,27727.0,27726.0,0.02031028]
[1680553840158,2.03713791,27727.0,27726.0,0.02031028]
[1680553840400,1.5,27723.0,27721.0,0.0207]
[1680553840640,0.511772,27722.0,27721.0,0.0207]
[1680553841148,0.684932,27722.0,27721.0,0.0207]
[1680553841382,0.684932,27722.0,27716.0,0.00012]
[1680553841383,0.15842,27717.0,27716.0,0.00012]
[1680553841613,0.30031681,27717.0,27714.0,0.00018]
[1680553842327,0.22203868,27717.0,27713.0,0.193593]
[1680553842560,0.33693549,27717.0,27713.0,0.193593]
[1680553842812,0.34393549,27717.0,27712.0,0.50421608]
[1680553843042,0.14189681,27716.0,27712.0,0.50421608]
[1680553843278,0.19373736,27716.0,27712.0,0.50421608]
[1680553843498,0.00018,27716.0,27712.0,0.50421608]
[1680553843752,0.179007,27717.0,27713.0,0.4]
[1680553843989,0.179007,27717.0,27712.0,0.50421608]
[1680553844486,0.30049681,27717.0,27712.0,0.50421608]
[1680553844726,0.05045668,27716.0,27712.0,0.50421608]
[1680553844991,0.17853349,27716.0,27712.0,0.50421608]
[1680553845208,0.03663668,27716.0,27712.0,0.50421608]
[1680553845689,0.03663668,27716.0,27713.0,0.54189681]
[1680553845690,0.00018,27716.0,27713.0,0.54189681]
[1680553845929,0.02718,27716.0,27715.0,0.193593]
[1680553846178,0.027,27716.0,27715.0,0.78857481]
[1680553846399,0.0743078,27717.0,27716.0,0.973093]
[1680553846651,0.0743078,27717.0,27716.0,0.592056]
[1680553846874,0.0743078,27717.0,27716.0,0.018963]
[1680553847100,0.0743078,27717.0,27716.0,0.212556]
[1680553848041,0.0753078,27717.0,27716.0,0.614056]
[1680553848287,0.00018,27721.0,27717.0,0.4]
[1680553848523,0.00018,27723.0,27718.0,0.019663]
[1680553848763,0.00018,27723.0,27718.0,0.16155981]
[1680553848978,0.00893567,27724.0,27719.0,0.013003]
[1680553849232,0.01454999,27724.0,27719.0,0.14189681]
[1680553849696,0.01454999,27724.0,27718.0,0.696493]
[1680553849937,0.32350248,27724.0,27718.0,0.696493]
[1680553850188,0.18178567,27724.0,27718.0,0.83838981]
[1680553850429,0.30911567,27724.0,27718.0,0.84038981]
[1680553850657,0.30911567,27724.0,27718.0,0.83838981]
[1680553850886,0.31811567,27724.0,27718.0,0.33748981]
[1680553851127,0.30911567,27724.0,27718.0,0.33548981]
[1680553851355,0.46001248,27724.0,27718.0,0.33748981]
[1680553851615,0.30911567,27724.0,27718.0,0.21746779]
[1680553851862,0.01811567,27724.0,27718.0,0.14389681]
[1680553852081,0.15083248,27724.0,27719.0,0.017001]
[1680553852310,0.00893567,27724.0,27719.0,0.017001]
[1680553852552,0.00893567,27724.0,27718.0,0.14189681]
[1680553852553,0.002954,27719.0,27718.0,0.14189681]
[1680553852781,0.14485081,27719.0,27718.0,0.017259]
[1680553853018,0.14485081,27719.0,27718.0,0.001]
[1680553853019,0.003134,27719.0,27718.0,0.001]
[1680553853245,0.002954,27719.0,27714.0,0.193593]
[1680553853469,0.002954,27719.0,27713.0,0.4]
[1680553853470,0.14189681,27718.0,27713.0,0.4]
[1680553853929,0.006407,27719.0,27714.0,0.01775]
[1680553854187,0.006407,27719.0,27714.0,0.01793]
[1680553854411,0.001,27718.0,27714.0,0.01793]
[1680553854879,0.006407,27719.0,27713.0,0.40018]
[1680553855116,0.14930381,27719.0,27714.0,0.009]
[1680553855377,0.007407,27719.0,27714.0,0.009]
[1680553855844,0.001,27719.0,27716.0,0.3795]
[1680553856070,0.001,27719.0,27718.0,0.3795]
[1680553856314,0.006407,27724.0,27718.0,0.415854]
[1680553856544,0.006407,27724.0,27720.0,0.3795]
[1680553856765,0.04062056,27725.0,27721.0,0.15989781]
[1680553856996,0.04062056,27725.0,27722.0,0.16313481]
[1680553857238,0.04062056,27725.0,27723.0,0.016964]
[1680553857477,0.006407,27727.0,27724.0,0.53943081]
[1680553857720,0.0155961,27732.0,27726.0,0.193593]
[1680553857996,0.0155961,27732.0,27727.0,0.18106161]
[1680553858236,0.0155961,27732.0,27728.0,0.017325]
[1680553858237,0.006407,27732.0,27728.0,0.017325]
[1680553858460,0.006407,27732.0,27729.0,0.016985]
[1680553858919,0.006407,27732.0,27728.0,0.015347]
[1680553859165,0.006407,27732.0,27728.0,0.07630428]
[1680553859415,0.14189681,27731.0,27729.0,0.011404]
[1680553859657,0.01893827,27728.0,27723.0,0.40018]
[1680553859882,0.14830381,27727.0,27724.0,0.014048]
[1680553860119,0.14830381,27727.0,27724.0,0.014228]
[1680553860351,0.14830381,27727.0,27724.0,0.014048]
[1680553860587,0.006407,27724.0,27723.0,0.394401]
[1680553860837,0.006407,27724.0,27723.0,0.01557]
[1680553861068,0.01893827,27728.0,27721.0,0.80658]
[1680553861306,0.14830381,27727.0,27721.0,0.94829681]
[1680553861549,0.14189681,27727.0,27721.0,0.49484768]
[1680553861810,0.006407,27723.0,27719.0,0.37968]
[1680553862047,0.006407,27723.0,27720.0,0.014654]
[1680553862048,0.14830381,27723.0,27720.0,0.014654]
[1680553862287,0.006587,27726.0,27721.0,0.015]
[1680553862517,0.006407,27726.0,27722.0,0.411638]
[1680553862739,0.001407,27726.0,27722.0,0.37968]
[1680553862976,0.01893827,27728.0,27723.0,0.014723]
[1680553863198,0.01893827,27728.0,27724.0,0.14189681]
[1680553863431,0.001,27726.0,27725.0,0.01437]
[1680553863674,0.01893827,27728.0,27725.0,0.01437]
[1680553863898,0.01893827,27728.0,27723.0,0.796191]
[1680553864140,0.01893827,27728.0,27724.0,0.62354776]
[1680553864395,0.01893827,27728.0,27725.0,0.014163]
[1680553864626,0.01893827,27728.0,27726.0,0.3817]
[1680553864858,0.01893827,27728.0,27727.0,0.013688]
[1680553865308,0.01893827,27728.0,27727.0,0.013868]
[1680553865526,0.01993827,27728.0,27727.0,0.6747281]
[1680553865752,0.01893827,27728.0,27727.0,0.6747281]
[1680553865994,0.02693827,27728.0,27727.0,0.6767281]
[1680553866212,0.01893827,27728.0,27727.0,0.593368]
[1680553866439,0.01993827,27728.0,27727.0,0.608368]
[1680553866943,0.01893827,27728.0,27727.0,0.593368]
[1680553867425,0.01893827,27728.0,27727.0,0.013868]
[1680553867666,0.02034527,27728.0,27727.0,0.002]
[1680553867915,0.02834527,27728.0,27727.0,0.004]
[1680553868163,0.06257127,27728.0,27727.0,0.01]
[1680553868411,0.0886534,27728.0,27727.0,0.01]
[1680553868649,0.0876534,27728.0,27727.0,0.002]
[1680553868879,0.3966534,27728.0,27727.0,0.002]
[1680553869107,0.3876534,27728.0,27719.0,0.00018]
[1680553869340,0.34734527,27728.0,27727.0,0.001]
[1680553869576,0.36349927,27728.0,27719.0,0.00018]
[1680553869816,0.34734527,27728.0,27727.0,0.001]
[1680553870108,0.39058127,27728.0,27727.0,0.001]
[1680553870345,0.09058127,27728.0,27727.0,0.001]
[1680553870588,0.09058127,27728.0,27720.0,0.37968]
[1680553870589,0.06358127,27728.0,27720.0,0.37968]
[1680553870876,0.14189681,27727.0,27720.0,0.37968]
[1680553871104,0.001407,27722.0,27720.0,0.00018]
[1680553871344,0.14330381,27722.0,27718.0,0.00018]
[1680553871584,0.14189681,27721.0,27720.0,0.005]
[1680553871823,0.001407,27722.0,27720.0,0.005]
[1680553872072,0.14330381,27722.0,27717.0,0.00018]
[1680553872549,0.14330381,27722.0,27720.0,0.005]
[1680553872789,0.046133,27721.0,27720.0,0.005]
[1680553873016,0.001,27721.0,27720.0,0.005]
[1680553873491,0.001407,27722.0,27717.0,0.00018]
[1680553873737,0.14530381,27722.0,27717.0,0.00618]
[1680553873966,0.001407,27722.0,27717.0,0.00018]
[1680553874190,0.001407,27722.0,27720.0,0.001]
[1680553874191,0.015,27721.0,27720.0,0.001]
[1680553874427,0.001407,27719.0,27718.0,0.00018]
[1680553874681,0.001407,27719.0,27717.0,0.00518]
[1680553874911,0.001407,27719.0,27717.0,0.00018]
[1680553875138,0.001407,27719.0,27716.0,0.00018]
[1680553875378,0.001407,27719.0,27715.0,0.21166624]
[1680553876565,0.001407,27719.0,27717.0,0.005]
[1680553876566,0.002407,27719.0,27717.0,0.005]
[1680553876800,0.001407,27719.0,27715.0,0.21166624]
[1680553877030,0.003407,27719.0,27715.0,0.21166624]
[1680553877291,0.001407,27719.0,27715.0,0.21166624]
[1680553877522,0.016407,27719.0,27717.0,0.001]
[1680553877983,0.016407,27719.0,27715.0,0.21166624]
[1680553877984,0.003407,27719.0,27715.0,0.21166624]
[1680553878502,0.001407,27719.0,27715.0,0.21166624]
[1680553878735,0.016407,27719.0,27717.0,0.001]
[1680553879417,0.016407,27719.0,27717.0,0.40176662]
[1680553879644,0.001407,27719.0,27717.0,0.40076662]
[1680553879872,0.001407,27719.0,27715.0,0.21666624]
[1680553879873,0.002407,27719.0,27715.0,0.21666624]
[1680553880117,0.14330381,27719.0,27715.0,0.21166624]
[1680553880346,0.15848381,27719.0,27717.0,0.001]
[1680553880580,0.001587,27719.0,27715.0,0.21166624]
[1680553880811,0.003407,27719.0,27715.0,0.21166624]
[1680553881042,0.001407,27719.0,27715.0,0.21166624]
[1680553881273,0.016407,27719.0,27717.0,0.001]
[1680553881517,0.001407,27719.0,27715.0,0.21166624]
[1680553881747,0.001407,27716.0,27715.0,0.21166624]
[1680553883012,0.010407,27716.0,27715.0,0.21266624]
[1680553883275,0.001407,27716.0,27715.0,0.21166624]
[1680553883508,0.016407,27716.0,27715.0,0.21266624]
[1680553885621,0.4,27721.0,27716.0,0.4]
[1680553885622,0.00018,27721.0,27716.0,0.4]
[1680553885857,0.001407,27724.0,27717.0,0.64888981]
[1680553886140,0.001407,27724.0,27718.0,0.014325]
[1680553886374,0.001407,27724.0,27719.0,0.14189681]
[1680553886606,0.37267,27727.0,27719.0,0.14189681]
[1680553886846,0.03820597,27726.0,27719.0,0.14189681]
[1680553887089,0.001407,27724.0,27719.0,0.14189681]
[1680553887563,0.001407,27724.0,27720.0,0.014414]
[1680553888033,0.001407,27724.0,27718.0,0.014732]
[1680553888269,0.14330381,27724.0,27718.0,0.55662881]
[1680553888514,0.001407,27724.0,27719.0,0.015805]
[1680553888749,0.001407,27724.0,27719.0,0.15881698]
[1680553888982,0.008407,27724.0,27720.0,0.016124]
[1680553889217,0.14189681,27724.0,27719.0,0.00018]
[1680553889449,0.001407,27722.0,27718.0,0.00018]
[1680553889681,0.001407,27722.0,27718.0,0.01492]
[1680553889682,0.14330381,27722.0,27718.0,0.01492]
[1680553889954,0.001407,27722.0,27720.0,0.001]
[1680553890182,0.001407,27722.0,27718.0,0.01492]
[1680553890407,0.002407,27722.0,27719.0,0.014343]
[1680553890637,0.002407,27722.0,27718.0,0.00618]
[1680553890873,0.002407,27722.0,27719.0,0.01452]
[1680553891102,0.002407,27722.0,27718.0,0.00618]
[1680553891560,0.001407,27722.0,27718.0,0.00018]
[1680553891803,0.14330381,27722.0,27718.0,0.00018]
[1680553892032,0.001407,27719.0,27716.0,0.00018]
[1680553892259,0.001407,27719.0,27716.0,0.014921]
[1680553893357,0.002407,27719.0,27716.0,0.027921]
[1680553893595,0.002407,27719.0,27717.0,0.014634]
[1680553894360,0.001407,27719.0,27717.0,0.014634]
[1680553894598,0.002407,27719.0,27716.0,0.020671]
[1680553894841,0.02460618,27718.0,27717.0,0.014467]
[1680553895070,0.02460618,27718.0,27717.0,0.014647]
[1680553895773,0.001407,27719.0,27717.0,0.014647]
[1680553895774,0.002407,27719.0,27717.0,0.014647]
[1680553896009,0.001407,27719.0,27717.0,0.414467]
[1680553896240,0.001407,27721.0,27718.0,0.014367]
[1680553896983,0.001407,27721.0,27718.0,0.508767]
[1680553897206,0.001407,27721.0,27719.0,0.215062]
[1680553897480,0.001407,27721.0,27720.0,0.014224]
[1680553897760,0.008407,27721.0,27720.0,0.014224]
[1680553897944,0.001407,27721.0,27720.0,0.014224]
[1680553898175,0.001407,27721.0,27719.0,0.314106]
[1680553898402,0.001407,27721.0,27720.0,0.014211]
[1680553898631,0.017407,27721.0,27720.0,0.016211]
[1680553898854,0.001407,27721.0,27720.0,0.0952901]
[1680553899085,0.015407,27721.0,27720.0,0.015211]
[1680553899317,0.001407,27721.0,27720.0,0.014211]
[1680553900016,0.001407,27721.0,27719.0,0.014458]
[1680553900252,0.001407,27721.0,27718.0,0.49458]
[1680553900490,0.017407,27721.0,27720.0,0.002]
[1680553900716,0.02462715,27720.0,27719.0,0.00018]
[1680553902142,0.03162715,27720.0,27719.0,0.00118]
[1680553903075,0.02462715,27720.0,27719.0,0.00018]
[1680553903313,0.02462715,27720.0,27719.0,0.00112]
[1680553903314,0.03862715,27720.0,27719.0,0.00112]
[1680553903553,0.02462715,27720.0,27718.0,0.49458]
[1680553903784,0.04062715,27720.0,27719.0,0.002]
[1680553904476,0.04062715,27720.0,27719.0,0.00187338]
[1680553908818,0.04062715,27720.0,27719.0,0.00170817]
[1680553909784,0.04062715,27720.0,27718.0,0.4944]
[1680553910693,0.04062715,27720.0,27717.0,0.00018]
[1680553910938,0.001407,27718.0,27715.0,0.21184624]
[1680553911169,0.14330381,27718.0,27715.0,0.21184624]
[1680553911398,0.19399681,27717.0,27715.0,0.21178624]
[1680553911630,0.0523,27716.0,27715.0,0.21166624]
[1680553911862,0.07266172,27716.0,27715.0,0.21166624]
[1680553912091,0.11622272,27716.0,27715.0,0.21166624]
[1680553912544,0.0523,27716.0,27715.0,0.21266624]
[1680553912762,0.0523,27716.0,27715.0,0.21166624]
[1680553912763,0.07483171,27716.0,27715.0,0.21166624]
[1680553912989,0.09383171,27716.0,27715.0,0.21166624]
[1680553913270,0.07483171,27716.0,27715.0,0.21166624]
[1680553913493,0.09983171,27716.0,27715.0,0.21166624]
[1680553913697,0.07483171,27716.0,27715.0,0.21166624]
[1680553915367,0.10183171,27716.0,27715.0,0.21166624]
[1680553921697,0.14655571,27716.0,27715.0,0.21166624]
[1680553921934,0.44655571,27716.0,27715.0,0.21166624]
[1680553922167,0.44673571,27716.0,27715.0,0.21166624]
[1680553923631,0.14673571,27716.0,27715.0,0.21166624]
[1680553923865,0.61922571,27716.0,27715.0,0.21166624]
[1680553924096,0.61995571,27716.0,27715.0,0.21166624]
[1680553924546,0.44673571,27716.0,27715.0,0.21166624]
[1680553925505,0.14655571,27716.0,27715.0,0.21166624]
[1680553925969,0.10323871,27716.0,27715.0,0.21166624]
[1680553926679,0.10323871,27716.0,27715.0,0.21184624]
[1680553927369,0.09413871,27716.0,27715.0,0.21184624]
[1680553927820,0.09413871,27716.0,27715.0,0.21166624]
[1680553928823,0.001587,27720.0,27717.0,0.3795]
[1680553929059,0.00018,27723.0,27718.0,0.15679781]
[1680553929299,0.001407,27723.0,27719.0,0.01465]
[1680553929532,0.001407,27723.0,27720.0,0.14189681]
[1680553929778,0.001407,27723.0,27720.0,0.14015292]
[1680553930018,0.001407,27723.0,27718.0,0.216631]
[1680553930252,0.001407,27723.0,27719.0,0.014812]
[1680553930697,0.010407,27723.0,27720.0,0.001]
[1680553931182,0.001407,27723.0,27719.0,0.014812]
[1680553931406,0.010407,27723.0,27719.0,0.001]
[1680553931636,0.001407,27723.0,27718.0,0.014864]
[1680553931869,0.010407,27723.0,27720.0,0.001]
[1680553932814,0.02091904,27722.0,27717.0,0.216812]
[1680553933036,0.16281585,27722.0,27719.0,0.001]
[1680553933276,0.02091904,27722.0,27718.0,0.01493]
[1680553933524,0.02091904,27722.0,27720.0,0.001]
[1680553933775,0.02091904,27722.0,27718.0,0.01493]
[1680553934018,0.02991904,27722.0,27718.0,0.1011242]
[1680553934237,0.02991904,27722.0,27719.0,0.014864]
[1680553934238,0.02091904,27722.0,27719.0,0.014864]
[1680553934459,0.02991904,27722.0,27720.0,0.001]
[1680553934687,0.02091904,27722.0,27720.0,0.014521]
[1680553934937,0.02091904,27722.0,27721.0,0.014824]
[1680553935207,0.001407,27719.0,27716.0,0.3795]
[1680553935461,0.14330381,27719.0,27717.0,0.014154]
[1680553935725,0.001407,27719.0,27717.0,0.07680628]
[1680553936001,0.00097456,27719.0,27717.0,0.36445449]
[1680553936278,0.00097456,27719.0,27717.0,0.06445449]
[1680553936553,0.00197456,27719.0,27717.0,0.011]
[1680553936801,0.0249082,27718.0,27716.0,0.3795]
[1680553937071,0.0249082,27718.0,27717.0,0.02335786]
[1680553937632,0.0249082,27718.0,27715.0,0.23285086]
[1680553937934,0.00097456,27719.0,27715.0,0.61235086]
[1680553938193,0.00197456,27719.0,27717.0,0.00819786]
[1680553939301,0.02404366,27718.0,27715.0,0.21166624]
[1680553939351,0.00097456,27717.0,27715.0,0.21166624]
[1680553939598,0.00097456,27717.0,27716.0,0.013882]
[1680553939840,0.00097456,27717.0,27715.0,0.21166624]
[1680553940600,0.00397456,27717.0,27716.0,0.414513]
[1680553940850,0.00097456,27717.0,27716.0,0.414513]
[1680553941116,0.00097456,27717.0,27716.0,0.4]
[1680553942277,0.00097456,27717.0,27715.0,0.61166624]
[1680553942278,0.00397456,27717.0,27715.0,0.21166624]
[1680553942488,0.03647456,27717.0,27715.0,0.21166624]
[1680553942696,0.076555,27716.0,27715.0,0.21166624]
[1680553943160,0.076555,27716.0,27715.0,0.21266624]
[1680553943378,0.076555,27716.0,27715.0,0.21166624]
[1680553943379,0.40224278,27716.0,27715.0,0.21166624]
[1680553943600,1.41567507,27715.0,27714.0,0.00018]
[1680553943812,0.00097456,27710.0,27703.0,0.5338]
[1680553944034,0.2,27712.0,27703.0,0.5338]
[1680553944035,0.00097456,27704.0,27703.0,0.53398]
[1680553944265,0.14287137,27704.0,27703.0,0.53398]